bitfinex-derivatives/quotes_ETHF0:USTF0_20260203
["timestamp","ask_amount","ask_price","bid_price","bid_amount"]
[1770141966870,0.22841,2191.3,2189.9,2.40495112]
[1770141967366,2.41542721,2191.4,2189.9,2.40495112]
[1770141967567,0.00591451,2191.4,2189.9,2.40495112]
[1770141967860,0.23431451,2191.4,2189.9,2.40495112]
[1770141969261,2.64382721,2191.4,2189.9,2.40495112]
[1770141969870,0.00591451,2191.4,2190.2,2.63347112]
[1770141970064,0.00591451,2191.4,2190.4,2.40495112]
[1770141970264,0.00591451,2191.4,2190.5,2.40495112]
[1770141970468,0.00591451,2191.4,2190.6,2.40495112]
[1770141970670,0.22196456,2191.5,2190.6,2.40495112]
[1770141971660,0.22543833,2191.5,2190.6,2.40495112]
[1770141971863,5.23152173,2192.9,2191.2,2.40495112]
[1770141972170,2.4095127,2193.0,2191.5,2.40495112]
[1770141972363,2.4095127,2192.5,2191.1,2.40495112]
[1770141972670,0.2283,2192.4,2191.1,2.40495112]
[1770141972964,0.23166872,2192.4,2191.1,2.40495112]
[1770141973169,0.00336872,2192.4,2191.1,2.40495112]
[1770141973975,0.22831,2192.3,2191.1,2.40495112]
[1770141974669,0.22834,2192.0,2191.1,2.40495112]
[1770141974868,2.41288142,2192.4,2191.1,2.40495112]
[1770141975062,2.64118142,2192.4,2191.1,2.40495112]
[1770141975464,0.00336872,2192.4,2190.4,0.0050147]
[1770141975665,6.344,2192.3,2190.4,0.0050147]
[1770141975965,2.4095127,2191.6,2190.4,0.0050147]
[1770141976169,2.6379127,2191.6,2190.4,2.40996582]
[1770141976366,2.4095127,2191.6,2190.4,2.40996582]
[1770141976970,0.22843,2191.3,2190.4,0.0050147]
[1770141977675,0.22843,2191.3,2190.4,2.40996582]
[1770141978065,2.4095127,2191.6,2190.4,2.40996582]
[1770141978272,0.22839,2191.7,2190.4,2.40996582]
[1770141979976,2.4095127,2191.9,2190.4,2.40996582]
[1770141980178,2.6378827,2191.9,2190.4,2.40996582]
[1770141980778,0.22839,2191.7,2190.4,2.40996582]
[1770141981284,0.00336872,2192.4,2190.6,2.38856049]
[1770141981484,0.00336872,2192.4,2190.6,2.61707049]
[1770141981785,0.22833,2192.3,2190.8,2.38856049]
[1770141981983,0.00336872,2192.4,2191.3,2.38856049]
[1770141982284,2.52604991,2193.2,2191.5,2.38856049]
[1770141982285,2.75431991,2192.9,2191.5,2.38856049]
[1770141982483,0.22827,2192.9,2191.5,2.38856049]
[1770141982884,0.22829,2192.7,2191.5,2.38856049]
[1770141983084,0.2315589,2192.7,2191.5,2.38856049]
[1770141983684,0.2283,2192.6,2191.5,2.38856049]
[1770141984378,0.22831,2192.5,2191.5,2.38856049]
[1770141984578,0.0032689,2192.7,2191.5,2.38856049]
[1770141984579,0.22832,2192.4,2191.5,2.38856049]
[1770141984887,0.22835,2192.1,2191.1,2.38856049]
[1770141985184,2.52604991,2192.4,2191.1,2.38856049]
[1770141985883,2.75437991,2192.3,2191.1,2.38856049]
[1770141986382,5.13745459,2192.7,2191.1,2.38856049]
[1770141986580,0.0032689,2192.7,2191.3,2.38856049]
[1770141987288,0.0032689,2192.7,2191.5,2.38856049]
[1770141989684,2.52604991,2193.7,2191.8,2.38856049]
[1770141989888,2.52604991,2193.7,2192.0,2.38856049]
[1770141990089,2.52604991,2194.0,2192.1,2.61691049]
[1770141990288,2.52604991,2194.0,2192.3,2.38856049]
[1770141990591,2.52604991,2194.0,2192.4,2.38856049]
[1770141990790,2.53190831,2194.0,2192.4,2.38856049]
[1770141990991,0.0058584,2194.0,2192.4,2.38856049]
[1770141991788,0.0058584,2194.0,2192.6,2.38856049]
[1770141993393,0.0058584,2194.0,2192.8,2.38856049]
[1770141993691,0.0058584,2194.0,2192.9,2.38856049]
[1770141994485,2.52604991,2194.7,2193.1,2.38856049]
[1770141994689,2.52604991,2195.1,2193.1,2.38856049]
[1770141994889,2.52604991,2195.1,2193.2,2.38856049]
[1770141995187,2.52604991,2195.6,2194.0,2.38856049]
[1770141995394,2.52604991,2195.6,2194.1,2.38856049]
[1770141995593,2.52947794,2195.6,2194.1,2.39266943]
[1770141995792,2.75746794,2195.6,2194.1,2.39266943]
[1770141995989,2.52947794,2195.6,2194.1,2.39266943]
[1770141996394,0.00342803,2195.6,2194.1,2.39266943]
[1770141996788,0.00342803,2195.6,2194.2,2.38856049]
[1770141996988,2.52947794,2195.6,2194.2,2.38856049]
[1770141997197,2.75404991,2195.5,2194.2,2.38856049]
[1770141997889,0.00342803,2195.6,2194.1,2.39266943]
[1770141997890,2.52604991,2195.2,2194.1,2.39266943]
[1770141998295,2.52947794,2195.6,2194.1,2.39266943]
[1770141998893,2.75746794,2195.6,2194.1,2.39266943]
[1770141999094,2.52604991,2195.4,2194.1,2.39266943]
[1770141999898,0.22806,2195.0,2194.1,0.00410894]
[1770142000196,2.75410991,2195.0,2194.1,0.00410894]
[1770142000398,2.75413991,2194.7,2193.3,2.38856049]
[1770142000599,2.52604991,2194.7,2193.3,2.38856049]
[1770142000797,0.22818,2193.8,2192.4,2.38856049]
[1770142001000,2.52604991,2194.0,2192.4,2.38856049]
[1770142001197,0.22819,2193.7,2192.4,2.38856049]
[1770142001401,2.52604991,2193.6,2192.4,2.38856049]
[1770142001700,2.53075926,2193.6,2192.4,2.39308511]
[1770142002500,0.00470935,2193.6,2192.4,2.39308511]
[1770142002906,2.75406991,2195.3,2193.1,2.38856049]
[1770142003098,2.52604991,2195.3,2193.3,2.38856049]
[1770142003396,2.52604991,2195.7,2193.5,2.38856049]
[1770142003602,0.22796,2195.9,2193.8,2.38856049]
[1770142003798,0.2327187,2195.9,2193.8,2.38856049]
[1770142003995,0.0047587,2195.9,2194.2,2.38856049]
[1770142004197,0.22196456,2196.5,2194.9,0.22805]
[1770142004406,2.52604991,2197.5,2195.2,2.38856049]
[1770142004596,2.52604991,2197.5,2195.4,2.38856049]
[1770142004801,2.75383991,2197.5,2195.4,2.38856049]
[1770142005095,2.52604991,2197.6,2195.4,2.38856049]
[1770142005302,0.00428485,2197.6,2195.8,2.61652049]
[1770142005602,2.52604991,2198.8,2196.2,2.61648049]
[1770142005898,2.52604991,2198.6,2196.4,2.38856049]
[1770142006104,2.75377991,2198.1,2196.4,2.38856049]
[1770142006301,2.53080861,2198.0,2196.4,2.38856049]
[1770142006506,0.0047587,2197.8,2196.4,2.38856049]
[1770142006799,0.0047587,2197.9,2196.4,2.38856049]
[1770142006995,0.0047587,2197.8,2196.4,2.38856049]
[1770142007202,2.53163752,2198.0,2196.4,2.38856049]
[1770142007904,2.52604991,2197.5,2196.4,2.38856049]
[1770142008104,0.0047587,2197.4,2196.4,2.38856049]
[1770142008406,0.0047587,2197.0,2196.0,2.38856049]
[1770142008601,0.0047587,2197.2,2196.0,2.38856049]
[1770142008805,2.52604991,2197.2,2195.6,2.38856049]
[1770142009103,0.00558761,2198.0,2195.6,2.38856049]
[1770142009104,0.0047587,2196.8,2195.6,2.38856049]
[1770142009306,2.52604991,2196.9,2195.6,2.38856049]
[1770142009608,2.52604991,2197.9,2195.6,2.38856049]
[1770142009901,2.53080861,2197.9,2195.6,2.38856049]
[1770142010203,2.52604991,2197.5,2195.7,2.38856049]
[1770142010800,2.50279042,2197.4,2195.7,2.38856049]
[1770142011005,2.50754912,2197.4,2195.7,2.38856049]
[1770142011206,0.0047587,2197.3,2195.7,2.38856049]
[1770142011405,2.50279042,2197.8,2195.7,2.38856049]
[1770142012006,2.50279042,2197.5,2195.7,2.38856049]
[1770142012409,2.50754912,2197.4,2195.7,2.38856049]
[1770142012608,2.50279042,2197.1,2195.7,2.38856049]
[1770142012804,2.73066042,2196.7,2195.4,2.42887414]
[1770142013208,0.0047587,2196.4,2195.4,2.42887414]
[1770142013411,0.00831792,2196.4,2195.4,2.42887414]
[1770142013611,0.0047587,2196.2,2195.4,2.42887414]
[1770142014007,0.00355922,2196.4,2195.5,40.8]
[1770142014207,2.41674321,2197.2,2195.6,2.53701115]
[1770142014504,2.41674321,2197.1,2195.6,2.53701115]
[1770142015112,0.0047587,2197.0,2195.6,2.53701115]
[1770142015312,0.00821184,2197.0,2195.6,2.53701115]
[1770142015910,0.2326387,2196.6,2195.6,2.53701115]
[1770142016112,0.0047587,2196.5,2195.4,0.00511226]
[1770142016308,0.00345314,2197.0,2195.4,0.00511226]
[1770142016309,0.0047587,2196.1,2195.4,0.00511226]
[1770142016509,0.22795,2196.0,2194.9,2.53701115]
[1770142016710,0.2327087,2196.0,2194.9,2.53701115]
[1770142017011,0.22795,2196.0,2194.9,2.53701115]
[1770142017209,0.0047587,2195.6,2194.9,2.53701115]
[1770142017412,0.0047587,2195.6,2194.1,6.07301115]
[1770142017616,2.64469321,2196.0,2194.2,2.53701115]
[1770142017916,2.64945191,2196.0,2194.2,2.53701115]
[1770142018109,2.42150191,2195.9,2194.2,2.53701115]
[1770142018314,0.22797,2195.8,2194.2,2.53701115]
[1770142018514,2.41674321,2196.9,2194.2,2.53701115]
[1770142018717,2.41674321,2196.2,2194.2,2.53701115]
[1770142018915,2.42150191,2196.0,2194.2,2.53701115]
[1770142019218,2.41674321,2195.9,2194.2,2.53701115]
[1770142019717,0.0047587,2195.5,2194.2,2.53701115]
[1770142019910,0.22801,2195.4,2194.2,2.53701115]
[1770142020215,2.64477321,2195.2,2194.1,0.00458704]
[1770142020518,0.0032407,2195.4,2194.1,2.54159819]
[1770142021016,0.0079994,2195.4,2194.1,2.54159819]
[1770142021221,2.41674321,2195.1,2194.1,0.00458704]
[1770142021415,0.0047587,2194.6,2193.7,2.53701115]
[1770142021714,0.22802,2195.3,2193.7,2.53701115]
[1770142021911,0.0032407,2195.4,2193.9,2.53701115]
[1770142022107,0.0032407,2195.4,2193.9,2.76517115]
[1770142022312,0.0032407,2195.4,2194.1,2.53701115]
[1770142022509,2.41674321,2196.0,2194.3,2.53701115]
[1770142022713,2.64460321,2196.8,2194.7,2.76509115]
[1770142022917,2.41674321,2196.6,2194.9,2.53701115]
[1770142023209,0.228,2195.5,2194.5,2.53701115]
[1770142023412,0.00328921,2195.5,2194.5,2.54264246]
[1770142023615,0.0047587,2195.1,2194.5,2.54264246]
[1770142023816,0.00328921,2195.5,2194.5,2.54264246]
[1770142024217,0.00328921,2195.5,2194.6,2.53701115]
[1770142025015,0.00804791,2195.5,2194.6,2.53701115]
[1770142025414,0.00328921,2195.5,2194.6,2.53701115]
[1770142025720,0.00804791,2195.5,2194.6,2.53701115]
[1770142026519,0.2328487,2194.6,2193.5,2.53701115]
[1770142026724,0.22809,2194.6,2193.5,2.53701115]
[1770142026920,0.0047587,2194.1,2193.5,2.53701115]
[1770142027116,1.04741407,2194.9,2192.4,2.8966195]
[1770142027318,0.22815,2194.1,2192.5,2.53701115]
[1770142027519,0.22815,2194.1,2192.5,2.54081445]
[1770142028018,0.22815,2194.1,2191.7,2.6682995]
[1770142028019,1.09841451,2194.1,2191.7,2.6682995]
[1770142028219,2.41674321,2193.2,2190.9,2.6682995]
[1770142028527,2.41674321,2193.6,2191.4,2.6682995]
[1770142028716,2.41674321,2193.6,2191.5,9.8522995]
[1770142029025,2.64816074,2193.6,2191.5,0.00329603]
[1770142029328,2.41674321,2193.3,2191.5,3.54229603]
[1770142029525,0.22826,2193.0,2191.5,3.54229603]
[1770142029818,2.41674321,2193.3,2191.5,3.54229603]
[1770142030023,2.41674321,2193.3,2191.6,2.53701115]
[1770142030222,0.22825,2193.1,2191.6,2.53701115]
[1770142030421,0.00321753,2193.6,2191.6,2.53701115]
[1770142030422,0.00321753,2193.6,2191.7,2.53701115]
[1770142030817,0.00797623,2193.6,2191.7,2.53701115]
[1770142031021,0.00321753,2193.6,2191.7,2.53701115]
[1770142031419,0.00321753,2193.6,2191.5,0.00329603]
[1770142031420,0.00321753,2193.6,2191.9,2.53701115]
[1770142031819,0.00321753,2193.6,2191.6,0.2284]
[1770142031820,0.00321753,2193.6,2192.1,2.53701115]
[1770142032325,0.00321753,2193.6,2192.2,3.531]
[1770142032526,0.00321753,2193.6,2192.3,2.53701115]
[1770142033325,0.00321753,2193.6,2192.5,2.53701115]
[1770142033516,0.22807,2194.8,2192.5,2.53701115]
[1770142033517,2.41674321,2194.7,2192.5,2.53701115]
[1770142034321,2.41674321,2194.2,2192.5,2.53701115]
[1770142034517,0.0047587,2193.5,2192.5,2.53701115]
[1770142034718,0.00464514,2194.2,2192.5,2.53701115]
[1770142034719,0.22818,2193.8,2192.5,2.53701115]
[1770142034920,0.0047587,2193.8,2192.5,2.53701115]
[1770142035118,2.41674321,2194.1,2192.7,2.53701115]
[1770142035626,0.0047587,2194.0,2192.7,2.53701115]
[1770142035828,2.41674321,2193.9,2192.7,2.53701115]
[1770142036126,0.0047587,2193.6,2192.7,2.53701115]
[1770142036326,0.0047587,2193.5,2192.7,2.53701115]
[1770142036525,2.41674321,2193.9,2192.7,2.53701115]
[1770142036728,0.0047587,2193.7,2192.7,2.53701115]
[1770142037024,0.0047587,2193.6,2192.7,2.53701115]
[1770142037328,0.0047587,2193.8,2192.7,2.53701115]
[1770142037627,0.0047587,2194.1,2192.7,2.53701115]
[1770142038028,0.0047587,2194.0,2192.7,2.53701115]
[1770142038227,0.0047587,2194.1,2192.9,2.53701115]
[1770142038429,0.00464514,2194.2,2192.9,2.53701115]
[1770142039027,2.42138835,2194.2,2192.8,2.58705903]
[1770142039231,0.0047587,2193.6,2192.8,2.53701115]
[1770142039628,0.0047587,2193.5,2192.8,2.53701115]
[1770142039826,0.0047587,2193.7,2192.8,2.53701115]
[1770142040022,0.0047587,2193.6,2192.8,2.53701115]
[1770142040330,0.0047587,2194.1,2192.8,2.53701115]
[1770142040726,0.0047587,2193.8,2192.8,6.08101115]
[1770142041126,0.0047587,2193.6,2192.8,2.53701115]
[1770142041325,0.0047587,2193.5,2192.8,2.53701115]
[1770142041521,0.0047587,2193.8,2192.8,2.53701115]
[1770142042031,3.649,2193.8,2191.7,2.6682995]
[1770142042221,3.649,2193.8,2191.5,5.44053315]
[1770142042222,0.22824,2193.2,2191.5,0.00329603]
[1770142042525,2.35304282,2193.4,2191.5,0.00329603]
[1770142042727,2.35304282,2193.4,2191.6,3.543]
[1770142042931,2.35304282,2193.4,2191.8,2.50800767]
[1770142043126,2.35304282,2193.4,2191.7,2.50800767]
[1770142043331,2.35304282,2193.4,2191.8,40.8]
[1770142044230,2.35304282,2193.4,2191.9,2.51276637]
[1770142044427,2.58128282,2193.2,2192.0,2.51276637]
[1770142044732,2.35304282,2193.2,2192.0,2.51276637]
[1770142044932,2.58122282,2193.7,2192.2,2.51276637]
[1770142045128,2.58122282,2193.7,2191.6,2.51276637]
[1770142045129,0.22827,2192.9,2191.6,2.51276637]
[1770142045328,2.58131282,2192.9,2191.6,2.51276637]
[1770142045822,2.58131282,2192.9,2191.7,2.51276637]
[1770142046024,0.22829,2192.7,2191.7,2.51276637]
[1770142046228,2.58133282,2192.7,2191.5,0.00329603]
[1770142046434,2.58133282,2192.7,2191.5,2.5160624]
[1770142047028,8.88461378,2193.8,2191.9,2.51276637]
[1770142047029,2.35304282,2193.1,2191.9,2.51276637]
[1770142047325,2.35304282,2193.1,2191.8,2.50800767]
[1770142047326,0.22818,2193.7,2192.1,2.51276637]
[1770142047529,2.58122282,2193.7,2192.1,2.51276637]
[1770142047727,2.35304282,2193.5,2192.2,2.50800767]
[1770142047929,0.22823,2193.3,2192.1,2.51276637]
[1770142048129,0.22823,2193.3,2192.3,2.51276637]
[1770142048329,0.22823,2193.3,2192.4,2.50800767]
[1770142048532,0.22823,2193.3,2192.3,2.51276637]
[1770142049134,2.35304282,2193.9,2192.5,2.51276637]
[1770142049331,0.00464514,2194.2,2192.9,2.51276637]
[1770142049631,0.22819,2193.6,2192.7,2.51276637]
[1770142049935,2.35304282,2193.4,2192.2,2.51276637]
[1770142050335,0.22821,2193.5,2192.4,2.51276637]
[1770142050936,0.22816,2194.0,2192.7,2.51276637]
[1770142051130,0.22816,2194.0,2192.9,2.51276637]
[1770142051335,0.22816,2194.0,2193.0,2.51276637]
[1770142051636,0.2282,2193.6,2192.6,2.51276637]
[1770142052038,0.2282,2193.6,2191.9,3.54]
[1770142052039,2.35304282,2193.6,2191.9,3.54]
[1770142052332,2.35304282,2192.8,2191.5,2.5160624]
[1770142052533,0.2283,2192.6,2191.5,2.5160624]
[1770142052735,0.22825,2193.1,2192.0,2.51276637]
[1770142053032,2.58129282,2193.1,2192.0,2.51276637]
[1770142053233,2.58125282,2193.5,2192.2,5.02077404]
[1770142053538,2.58126282,2193.4,2192.2,2.51276637]
[1770142053736,2.58127282,2193.3,2192.2,2.51276637]
[1770142054340,2.58129282,2193.1,2191.6,2.51276637]
[1770142054536,0.00459517,2193.4,2192.7,2.51276637]
[1770142054735,2.58113282,2194.6,2193.0,2.50800767]
[1770142054935,2.35304282,2195.0,2193.2,2.51276637]
[1770142055136,2.35304282,2195.0,2193.1,2.6682995]
[1770142055137,2.58110282,2194.9,2193.3,2.51276637]
[1770142055443,2.58112282,2194.7,2193.3,2.51276637]
[1770142055637,2.58113282,2194.6,2193.4,2.51276637]
[1770142055833,0.2281,2194.5,2193.4,2.51276637]
[1770142056136,0.22816,2193.9,2193.1,0.00500582]
[1770142056841,0.22817,2193.8,2193.1,0.00500582]
[1770142057240,2.35304282,2194.0,2193.1,0.00500582]
[1770142057439,2.58118282,2194.2,2193.1,0.00500582]
[1770142057737,0.22814,2194.1,2193.1,0.00500582]
[1770142057937,2.35304282,2193.8,2193.1,0.00500582]
[1770142058142,0.22817,2193.8,2193.1,0.00500582]
[1770142058538,2.35304282,2194.2,2193.1,0.00500582]
[1770142059138,2.58117282,2194.2,2193.1,0.00500582]
[1770142059440,2.58120282,2194.0,2193.1,0.00500582]
[1770142060540,2.35304282,2194.0,2192.1,2.6682995]
[1770142060836,0.22826,2193.0,2191.8,2.51276637]
[1770142061042,0.22827,2192.9,2191.8,2.51276637]
[1770142061237,8.93,2193.2,2191.4,2.51276637]
[1770142061540,4.95160569,2192.5,2191.4,0.00549165]
[1770142061741,2.35304282,2192.4,2191.4,0.00549165]
[1770142061941,0.22836,2192.1,2191.4,0.00549165]
[1770142062139,7.63404282,2192.3,2191.5,2.50800767]
[1770142062339,2.58133282,2192.7,2191.6,2.50800767]
[1770142062535,0.2283,2192.6,2191.6,2.50800767]
[1770142062735,0.2283,2192.6,2191.5,2.51276637]
[1770142063040,0.2283,2192.6,2191.9,2.50800767]
[1770142063439,0.2283,2192.6,2192.1,2.50800767]
[1770142063644,0.22831,2192.5,2191.5,2.51276637]
[1770142064144,0.22834,2192.2,2191.6,2.50800767]
[1770142064339,0.22834,2192.2,2191.4,0.00549165]
[1770142064543,0.22834,2192.2,2191.6,2.50800767]
[1770142064739,0.22836,2192.0,2191.1,2.51276637]
[1770142065647,0.22831,2192.5,2191.1,2.51276637]
[1770142065839,0.91551002,2192.3,2190.6,2.51276637]
[1770142066142,0.22841,2191.5,2190.6,2.51276637]
[1770142066348,0.22838,2191.9,2190.6,2.51276637]
[1770142066548,0.22838,2191.8,2190.6,2.51276637]
[1770142066747,0.91551002,2191.9,2190.6,2.51276637]
[1770142066948,0.9189452,2191.9,2190.6,2.51850995]
[1770142067149,0.9189452,2191.9,2190.6,0.00574358]
[1770142067150,0.22843,2191.4,2190.6,0.00574358]
[1770142067447,0.22843,2191.3,2190.6,0.00574358]
[1770142068846,0.22843,2191.3,2190.6,2.51850995]
[1770142069049,0.00343518,2191.9,2190.6,2.51850995]
[1770142069845,0.2284,2191.6,2190.6,2.51850995]
[1770142070150,0.23180518,2191.9,2190.6,2.51850995]
[1770142071352,0.22838,2191.8,2190.6,2.51850995]
[1770142071752,0.2284,2191.6,2190.6,2.51850995]
[1770142071952,0.00343518,2191.9,2190.6,2.51850995]
[1770142072348,0.22824,2193.2,2191.0,2.70889494]
[1770142072548,0.22817,2193.8,2191.8,2.55933063]
[1770142072752,0.80061296,2193.1,2191.4,5.43723712]
[1770142072952,3.62756583,2192.8,2191.2,2.55933063]
[1770142073252,0.22837,2191.9,2191.2,2.55933063]
[1770142073448,0.22831,2192.5,2191.2,2.55933063]
[1770142074555,0.23378237,2192.5,2191.2,2.55933063]
[1770142075158,0.00547237,2192.5,2191.2,2.55933063]
[1770142075351,0.22837,2191.9,2191.2,2.55933063]
[1770142075857,0.00547237,2192.5,2191.2,2.55933063]
[1770142076354,0.22832,2192.4,2191.2,2.55933063]
[1770142077351,0.22837,2192.0,2190.7,2.54151622]
[1770142078854,0.00547237,2192.5,2190.7,2.54151622]
[1770142079246,0.22838,2191.8,2190.7,2.54151622]
[1770142079446,5.23561378,2192.4,2190.7,2.54151622]
[1770142079447,41.76983044,2192.4,2190.7,2.54151622]
[1770142079647,1.48860684,2192.5,2190.7,2.54151622]
[1770142080448,0.00547237,2192.5,2190.9,2.54151622]
[1770142081246,0.00547237,2192.5,2190.9,6.19351622]
[1770142081454,0.22821,2193.5,2191.2,2.54151622]
[1770142081656,9.86468399,2193.6,2191.5,2.54151622]
[1770142081859,1.34385859,2193.5,2191.5,2.54151622]
[1770142082154,0.22822,2193.3,2191.5,2.54151622]
[1770142082353,0.23225754,2193.3,2191.5,2.54151622]
[1770142082650,1.57611613,2193.3,2191.5,2.54151622]
[1770142082854,0.22827,2192.9,2191.3,2.54151622]
[1770142083154,0.22839,2191.8,2190.9,2.54151622]
[1770142083454,0.22841,2191.6,2190.6,2.5472598]
[1770142083751,0.00585686,2191.6,2190.6,2.5472598]
[1770142083957,0.22833,2192.3,2190.6,2.5472598]
[1770142084157,1.60776782,2192.3,2190.7,2.54151622]
[1770142084458,1.37943782,2192.3,2190.7,2.54151622]
[1770142084750,1.37943782,2192.3,2190.8,2.54151622]
[1770142084965,0.00362074,2192.3,2190.8,2.54151622]
[1770142085454,0.00362074,2192.3,2190.9,2.54151622]
[1770142085651,0.22835,2192.1,2190.9,2.54151622]
[1770142085855,0.22836,2192.0,2190.9,2.54151622]
[1770142086258,2.60420741,2192.3,2190.9,2.54151622]
[1770142086558,0.00362074,2192.3,2190.9,2.54151622]
[1770142089356,0.22836,2192.0,2190.9,2.54151622]
[1770142089561,0.00362074,2192.3,2190.9,2.54151622]
[1770142090153,0.22835,2192.1,2190.9,2.54151622]
[1770142090354,2.60058667,2192.1,2190.9,2.54151622]
[1770142090559,2.60058667,2191.9,2190.9,2.54151622]
[1770142090864,0.22846,2191.1,2190.2,2.54151622]
[1770142091062,2.82899667,2191.5,2190.4,2.54151622]
[1770142091263,0.22841,2191.5,2190.4,2.54151622]
[1770142091458,2.82895667,2191.9,2190.7,2.54151622]
[1770142091762,0.22838,2191.8,2190.9,2.54151622]
[1770142091960,0.22839,2191.7,2190.9,2.54151622]
[1770142092154,7.83558667,2192.2,2190.9,2.54151622]
[1770142092356,0.22836,2192.0,2191.1,2.54151622]
[1770142092555,0.22836,2192.0,2191.1,2.5472598]
[1770142092756,0.22836,2192.0,2191.4,2.5472598]
[1770142092953,0.22836,2192.0,2191.4,2.54151622]
[1770142093155,0.2284,2191.6,2191.2,2.54151622]
[1770142093354,5.242,2191.9,2191.2,2.54151622]
[1770142093860,5.242,2191.9,2190.8,2.54151622]
[1770142093861,0.2284,2191.7,2190.8,2.54151622]
[1770142094061,2.60058667,2192.2,2190.8,2.54151622]
[1770142094359,0.23195074,2192.3,2190.9,2.54151622]
[1770142094662,0.23195074,2192.3,2191.0,2.54151622]
[1770142094663,0.00362074,2192.3,2191.0,2.54151622]
[1770142094861,0.00362074,2192.3,2191.1,6.60453982]
[1770142095056,0.22826,2193.0,2191.3,2.54151622]
[1770142095253,0.22826,2193.0,2191.6,2.54151622]
[1770142095563,5.20230327,2194.1,2192.1,2.54151622]
[1770142095766,0.22812,2194.4,2192.8,2.54151622]
[1770142096065,0.23342797,2194.4,2193.0,2.54151622]
[1770142096256,2.64080068,2194.3,2193.0,2.54151622]
[1770142096460,7.20240068,2194.3,2193.0,2.54151622]
[1770142096664,4.5616,2194.2,2193.0,2.54151622]
[1770142097056,0.00530797,2194.4,2193.0,2.54151622]
[1770142097256,10.44430327,2195.3,2192.8,4.06889595]
[1770142097257,0.37387457,2195.2,2193.2,6.60453982]
[1770142097462,2.41268068,2195.2,2193.4,2.54151622]
[1770142097961,2.41268068,2195.1,2193.4,2.54151622]
[1770142098359,2.41268068,2194.8,2193.4,2.54151622]
[1770142098563,0.0044306,2195.1,2193.4,2.54151622]
[1770142098757,0.0044306,2195.1,2193.6,2.54151622]
[1770142098964,4.5616,2194.8,2193.6,2.54151622]
[1770142099163,2.41711128,2195.1,2193.6,2.54151622]
[1770142099463,4.5616,2194.9,2193.6,2.54151622]
[1770142099859,4.5616,2194.8,2193.6,2.54151622]
[1770142100363,2.41711128,2195.1,2193.6,2.54151622]
[1770142100862,4.5616,2194.8,2193.6,2.54151622]
[1770142101058,6.97209729,2194.8,2193.6,2.54151622]
[1770142101260,4.5616,2194.5,2193.6,2.54151622]
[1770142101658,2.41049729,2194.8,2193.6,2.54151622]
[1770142101861,4.5616,2194.5,2193.6,2.54151622]
[1770142102262,2.64296789,2195.1,2193.6,2.54151622]
[1770142102458,4.5616,2194.9,2193.6,2.54151622]
[1770142102656,0.0044306,2195.1,2193.6,2.54151622]
[1770142104864,4.5616,2195.0,2193.6,2.54151622]
[1770142105064,0.0044306,2195.1,2193.6,2.54151622]
[1770142107666,4.5660306,2195.1,2193.6,2.54151622]
[1770142108063,0.0044306,2195.1,2193.8,2.5477882]
[1770142108465,3.649,2196.3,2194.0,2.5477882]
[1770142108466,2.41049729,2196.2,2194.0,2.5477882]
[1770142108667,2.41049729,2196.0,2194.0,2.5477882]
[1770142108967,2.41049729,2195.7,2194.2,2.5477882]
[1770142109162,2.78840738,2196.1,2194.2,2.5477882]
[1770142109360,2.41049729,2195.7,2194.2,2.5477882]
[1770142109559,6.97209729,2195.7,2194.2,2.5477882]
[1770142109768,4.5616,2195.5,2194.2,2.5477882]
[1770142109970,4.5616,2195.4,2194.2,2.5477882]
[1770142110271,6.97209729,2195.3,2194.2,2.5477882]
[1770142110463,2.41049729,2195.3,2194.2,2.5477882]
[1770142110668,4.5616,2195.0,2194.2,2.5477882]
[1770142110873,2.41049729,2195.7,2194.2,2.5477882]
[1770142111166,2.41562084,2196.1,2194.4,2.5477882]
[1770142111371,2.41562084,2196.1,2194.4,2.55247955]
[1770142112272,2.41049729,2195.9,2194.4,2.55247955]
[1770142112568,2.41049729,2195.5,2194.4,2.55247955]
[1770142112770,6.97209729,2195.5,2194.4,2.55247955]
[1770142112969,4.5616,2195.0,2194.4,2.55247955]
[1770142113361,4.5616,2194.8,2194.4,2.55247955]
[1770142113566,4.5616,2195.1,2194.4,2.55247955]
[1770142113768,4.5616,2194.9,2194.4,0.00469135]
[1770142113964,2.41049729,2195.6,2194.4,2.55247955]
[1770142114163,0.00512355,2196.1,2194.6,2.5477882]
[1770142114369,0.00512355,2196.1,2194.8,2.5477882]
[1770142114370,2.41562084,2196.1,2194.8,2.5477882]
[1770142114569,6.97209729,2195.9,2194.8,2.5477882]
[1770142114767,6.97209729,2195.9,2194.4,0.00469135]
[1770142114768,4.5616,2195.6,2194.4,2.55247955]
[1770142114968,6.97209729,2195.7,2194.4,2.55247955]
[1770142115168,4.5616,2195.2,2194.4,0.00469135]
[1770142115371,2.41049729,2195.6,2194.4,2.55247955]
[1770142115372,4.5616,2194.8,2194.4,2.55247955]
[1770142115572,4.5616,2195.1,2194.4,2.55247955]
[1770142115974,4.5616,2195.0,2194.4,2.55247955]
[1770142116170,2.41049729,2195.6,2194.4,2.55247955]
[1770142116374,4.5616,2195.2,2194.4,2.55247955]
[1770142116770,4.5616,2194.6,2194.4,0.00469135]
[1770142116976,4.5616,2194.7,2193.8,2.5477882]
[1770142117172,2.63855729,2194.9,2193.8,2.5477882]
[1770142117476,4.5616,2194.6,2193.8,2.5477882]
[1770142117871,2.41049729,2194.8,2193.8,2.5477882]
[1770142117872,2.41049729,2195.2,2193.8,2.55145088]
[1770142118773,4.5616,2195.1,2193.8,2.55145088]
[1770142118974,2.41049729,2195.9,2193.8,0.00366268]
[1770142119280,0.00512355,2196.1,2195.1,2.5477882]
[1770142119777,2.41049729,2196.8,2195.1,2.7758182]
[1770142119977,2.41049729,2196.6,2195.1,2.5477882]
[1770142120176,6.97209729,2196.6,2195.1,2.5477882]
[1770142120372,4.5616,2196.4,2195.1,2.5477882]
[1770142120779,4.5616,2196.3,2195.1,2.5477882]
[1770142120970,4.5616,2196.0,2195.1,2.5477882]
[1770142121175,4.5616,2195.9,2195.1,2.5477882]
[1770142121678,4.5616,2195.7,2195.1,2.5477882]
[1770142121879,4.5616,2195.8,2195.1,2.5477882]
[1770142122073,4.5616,2196.1,2195.1,2.5477882]
[1770142122373,4.5616,2196.3,2195.1,2.5477882]
[1770142122567,0.00563951,2196.4,2195.1,2.5477882]
[1770142123679,3.647,2197.0,2195.3,2.7757982]
[1770142124174,6.05749729,2197.0,2195.3,2.5477882]
[1770142124472,4.5616,2196.6,2195.3,2.5477882]
[1770142124677,4.56504257,2196.6,2195.3,2.5477882]
[1770142124881,0.23133257,2196.6,2195.3,2.5477882]
[1770142125069,0.00344257,2196.6,2195.3,2.5477882]
[1770142125570,0.00344257,2196.6,2195.3,2.7758082]
[1770142125770,2.41049729,2197.5,2195.9,2.5477882]
[1770142125974,2.41049729,2197.5,2196.0,2.5477882]
[1770142126179,2.41049729,2197.0,2196.0,2.5477882]
[1770142126373,2.63833729,2197.0,2196.0,2.5477882]